[Event "Titled Tuesday Blitz December 13 Late 2022"]
[White "Vasquez Schroeder, Rodrigo"]
[Black "Bortnyk, Olexandr"]
[WhiteFideId "3400042"]
[BlackFideId "14120828"]
[WhiteElo "2603"]
[BlackElo "2723"]
[Result "1-0"]
[Round "08"]
[TimeControl "180+1"]
[Date "2022.12.13"]
[WhiteClock "0:00:46"]
[BlackClock "0:00:05"]

1. d4 {[%clk 0:03:00]}  d6 {[%clk 0:02:55]} 2. e4 {[%clk 0:02:59]}  Nf6 {[%clk 0:02:55]} 3. Nc3 {[%clk 0:02:59]}  e5 {[%clk 0:02:55]} 4. Nf3 {[%clk 0:03:00]}  Nbd7 {[%clk 0:02:56]} 5. Bc4 {[%clk 0:02:59]}  Be7 {[%clk 0:02:55]} 6. O-O {[%clk 0:02:58]}  c6 {[%clk 0:02:56]} 7. a4 {[%clk 0:02:57]}  Qc7 {[%clk 0:02:56]} 8. Re1 {[%clk 0:02:47]}  h6 {[%clk 0:02:56]} 9. b3 {[%clk 0:02:43]}  Nf8 {[%clk 0:02:55]} 10. Bb2 {[%clk 0:02:38]}  Ng6 {[%clk 0:02:54]} 11. h3 {[%clk 0:02:37]}  O-O {[%clk 0:02:54]} 12. Qd2 {[%clk 0:02:37]}  Nh7 {[%clk 0:02:47]} 13. Rad1 {[%clk 0:02:31]}  Ng5 {[%clk 0:02:47]} 14. Nxg5 {[%clk 0:02:20]}  Bxg5 {[%clk 0:02:48]} 15. Qd3 {[%clk 0:02:15]}  Qe7 {[%clk 0:02:35]} 16. Ba3 {[%clk 0:02:11]}  Nf4 {[%clk 0:02:05]} 17. Qf1 {[%clk 0:02:06]}  Rd8 {[%clk 0:01:17]} 18. Ne2 {[%clk 0:01:56]}  exd4 {[%clk 0:00:58]} 19. Nxf4 {[%clk 0:01:51]}  Bxf4 {[%clk 0:00:59]} 20. Rxd4 {[%clk 0:01:51]}  Qg5 {[%clk 0:00:55]} 21. Kh1 {[%clk 0:01:45]}  Be5 {[%clk 0:00:51]} 22. Rd3 {[%clk 0:01:34]}  Qh4 {[%clk 0:00:31]} 23. f4 {[%clk 0:01:25]}  Bxf4 {[%clk 0:00:21]} 24. Rf3 {[%clk 0:01:25]}  g5 {[%clk 0:00:21]} 25. g3 {[%clk 0:01:16]}  Bxg3 {[%clk 0:00:14]} 26. Rxf7 {[%clk 0:01:16]}  Qxh3+ {[%clk 0:00:07]} 27. Qxh3 {[%clk 0:01:12]}  Bxh3 {[%clk 0:00:08]} 28. Rf3+ {[%clk 0:01:09]}  d5 {[%clk 0:00:07]} 29. Rxg3 {[%clk 0:01:09]}  dxc4 {[%clk 0:00:08]} 30. Rxh3 {[%clk 0:01:09]}  cxb3 {[%clk 0:00:09]} 31. Rxb3 {[%clk 0:01:09]}  b6 {[%clk 0:00:06]} 32. Rd3 {[%clk 0:01:06]}  Kf7 {[%clk 0:00:05]} 33. Rf1+ {[%clk 0:01:04]}  Kg6 {[%clk 0:00:02]} 34. Bb2 {[%clk 0:01:04]}  Rxd3 {[%clk 0:00:02]} 35. cxd3 {[%clk 0:01:05]}  c5 {[%clk 0:00:03]} 36. Rf6+ {[%clk 0:01:03]}  Kh5 {[%clk 0:00:03]} 37. Rd6 {[%clk 0:00:59]}  Re8 {[%clk 0:00:02]} 38. Kg2 {[%clk 0:00:58]}  Kg4 {[%clk 0:00:02]} 39. Rxh6 {[%clk 0:00:57]}  Rd8 {[%clk 0:00:02]} 40. Rh3 {[%clk 0:00:57]}  c4 {[%clk 0:00:03]} 41. Rg3+ {[%clk 0:00:57]}  Kf4 {[%clk 0:00:01]} 42. Bc1+ {[%clk 0:00:56]}  Ke5 {[%clk 0:00:01]} 43. Kf2 {[%clk 0:00:46]}  Rxd3 {[%clk 0:00:01]} 44. Rxd3 {[%clk 0:00:46]}  cxd3 {[%clk 0:00:02]} 45. Ke3 {[%clk 0:00:47]}  g4 {[%clk 0:00:03]} 46. Bb2+ {[%clk 0:00:46]}  Kd6 {[%clk 0:00:02]} 47. Kxd3 {[%clk 0:00:46]}  a6 {[%clk 0:00:02]} 48. Bd4 {[%clk 0:00:45]}  b5 {[%clk 0:00:02]} 49. axb5 {[%clk 0:00:46]}  axb5 {[%clk 0:00:03]} 50. Ke3 {[%clk 0:00:45]}  b4 {[%clk 0:00:02]} 51. Kf4 {[%clk 0:00:46]}  b3 {[%clk 0:00:03]} 52. Kxg4 {[%clk 0:00:46]}  Kc6 {[%clk 0:00:03]} 53. Kf4 {[%clk 0:00:46]}  Kb5 {[%clk 0:00:04]} 54. e5 {[%clk 0:00:46]}  Kc4 {[%clk 0:00:05]} 55. Ke4 {[%clk 0:00:46]} 1-0


[Site "https://www.chess.com"]

[Event "Titled Tuesday Blitz December 13 Late 2022"]
[White "Vlassov, Nikolai"]
[Black "Arkell, Keith C"]
[WhiteFideId "4103360"]
[BlackFideId "400270"]
[WhiteElo "2324"]
[BlackElo "2356"]
[Result "1/2-1/2"]
[Round "08"]
[TimeControl "180+1"]
[Date "2022.12.14"]
[WhiteClock "0:00:20"]
[BlackClock "0:01:15"]

1. e4 {[%clk 0:03:00]}  c6 {[%clk 0:02:56]} 2. d4 {[%clk 0:03:00]}  d5 {[%clk 0:02:56]} 3. e5 {[%clk 0:03:00]}  c5 {[%clk 0:02:56]} 4. dxc5 {[%clk 0:02:59]}  Nc6 {[%clk 0:02:56]} 5. Bb5 {[%clk 0:02:57]}  e6 {[%clk 0:02:56]} 6. Be3 {[%clk 0:02:56]}  Bd7 {[%clk 0:02:55]} 7. Bxc6 {[%clk 0:02:56]}  Bxc6 {[%clk 0:02:55]} 8. Nf3 {[%clk 0:02:56]}  Ne7 {[%clk 0:02:55]} 9. O-O {[%clk 0:02:55]}  Nf5 {[%clk 0:02:55]} 10. Bd4 {[%clk 0:02:56]}  Nxd4 {[%clk 0:02:55]} 11. Qxd4 {[%clk 0:02:55]}  a5 {[%clk 0:02:55]} 12. c3 {[%clk 0:02:54]}  a4 {[%clk 0:02:55]} 13. Nbd2 {[%clk 0:02:47]}  Ra5 {[%clk 0:02:54]} 14. b4 {[%clk 0:02:46]}  axb3 {[%clk 0:02:54]} 15. Nxb3 {[%clk 0:02:45]}  Ra4 {[%clk 0:02:53]} 16. Qd3 {[%clk 0:02:39]}  Be7 {[%clk 0:02:53]} 17. Nfd4 {[%clk 0:02:37]}  O-O {[%clk 0:02:53]} 18. f4 {[%clk 0:02:35]}  g6 {[%clk 0:02:52]} 19. g4 {[%clk 0:02:29]}  Qa8 {[%clk 0:02:31]} 20. Rf2 {[%clk 0:02:28]}  Qa6 {[%clk 0:02:30]} 21. Qxa6 {[%clk 0:02:18]}  Rxa6 {[%clk 0:02:31]} 22. f5 {[%clk 0:02:17]}  exf5 {[%clk 0:02:30]} 23. gxf5 {[%clk 0:02:17]}  Rfa8 {[%clk 0:02:30]} 24. f6 {[%clk 0:02:10]}  Bf8 {[%clk 0:02:19]} 25. e6 {[%clk 0:02:10]}  fxe6 {[%clk 0:02:19]} 26. f7+ {[%clk 0:02:08]}  Kh8 {[%clk 0:02:15]} 27. Nxe6 {[%clk 0:02:08]}  Bd7 {[%clk 0:02:12]} 28. Nxf8 {[%clk 0:02:03]}  Rxf8 {[%clk 0:02:11]} 29. Nd4 {[%clk 0:01:56]}  Kg7 {[%clk 0:02:09]} 30. Rb1 {[%clk 0:01:47]}  Bc8 {[%clk 0:01:52]} 31. Rb6 {[%clk 0:01:28]}  Ra5 {[%clk 0:01:44]} 32. c6 {[%clk 0:01:27]}  bxc6 {[%clk 0:01:44]} 33. Rxc6 {[%clk 0:01:25]}  Bf5 {[%clk 0:01:35]} 34. Nxf5+ {[%clk 0:00:59]}  gxf5 {[%clk 0:01:36]} 35. Rxf5 {[%clk 0:00:58]}  Rxf7 {[%clk 0:01:35]} 36. Rg5+ {[%clk 0:00:51]}  Kf8 {[%clk 0:01:34]} 37. Rc8+ {[%clk 0:00:49]}  Ke7 {[%clk 0:01:34]} 38. Rc7+ {[%clk 0:00:48]}  Kf6 {[%clk 0:01:34]} 39. Rxf7+ {[%clk 0:00:40]}  Kxg5 {[%clk 0:01:34]} 40. Rxh7 {[%clk 0:00:38]}  Rxa2 {[%clk 0:01:34]} 41. Rh3 {[%clk 0:00:36]}  Rc2 {[%clk 0:01:23]} 42. Rd3 {[%clk 0:00:36]}  Kg4 {[%clk 0:01:22]} 43. h3+ {[%clk 0:00:27]}  Kf4 {[%clk 0:01:20]} 44. Rxd5 {[%clk 0:00:26]}  Rxc3 {[%clk 0:01:19]} 45. Kg2 {[%clk 0:00:21]}  Rc2+ {[%clk 0:01:19]} 46. Kg1 {[%clk 0:00:21]}  Kg3 {[%clk 0:01:13]} 47. Rd3+ {[%clk 0:00:20]}  Kh4 {[%clk 0:01:13]} 48. Re3 {[%clk 0:00:19]}  Rb2 {[%clk 0:01:13]} 49. Rd3 {[%clk 0:00:20]}  Rc2 {[%clk 0:01:13]} 50. Re3 {[%clk 0:00:20]}  Rb2 {[%clk 0:01:13]} 51. Rc3 {[%clk 0:00:20]}  Ra2 {[%clk 0:01:14]} 52. Rb3 {[%clk 0:00:20]}  Rc2 {[%clk 0:01:14]} 53. Ra3 {[%clk 0:00:20]}  Rd2 {[%clk 0:01:14]} 54. Rb3 {[%clk 0:00:20]}  Rc2 {[%clk 0:01:14]} 55. Ra3 {[%clk 0:00:20]}  Rd2 {[%clk 0:01:15]} 56. Rb3 {[%clk 0:00:20]}  Rc2 {[%clk 0:01:15]} 1/2-1/2


[Site "https://www.chess.com"]

[Event "Titled Tuesday Blitz December 13 Late 2022"]
[White "Winkels, Marcel"]
[Black "Steenbekkers, Franck"]
[WhiteFideId "1003887"]
[BlackFideId "1004220"]
[WhiteElo "1900"]
[BlackElo "1938"]
[Result "0-1"]
[Round "08"]
[TimeControl "180+1"]
[Date "2022.12.14"]
[WhiteClock "0:01:22"]
[BlackClock "0:01:39"]

1. d4 {[%clk 0:03:00]}  Nf6 {[%clk 0:02:58]} 2. c4 {[%clk 0:03:00]}  g6 {[%clk 0:02:56]} 3. h4 {[%clk 0:02:59]}  c5 {[%clk 0:02:54]} 4. d5 {[%clk 0:02:58]}  e6 {[%clk 0:02:53]} 5. Nc3 {[%clk 0:02:57]}  exd5 {[%clk 0:02:53]} 6. cxd5 {[%clk 0:02:56]}  d6 {[%clk 0:02:52]} 7. e4 {[%clk 0:02:55]}  a6 {[%clk 0:02:45]} 8. a4 {[%clk 0:02:53]}  Nbd7 {[%clk 0:02:44]} 9. Nf3 {[%clk 0:02:51]}  Bg7 {[%clk 0:02:39]} 10. Bd3 {[%clk 0:02:46]}  Ng4 {[%clk 0:02:38]} 11. Bg5 {[%clk 0:02:31]}  Bf6 {[%clk 0:02:28]} 12. O-O {[%clk 0:02:18]}  h6 {[%clk 0:02:24]} 13. Bxf6 {[%clk 0:02:16]}  Qxf6 {[%clk 0:02:23]} 14. Re1 {[%clk 0:01:56]}  Nde5 {[%clk 0:02:21]} 15. Nxe5 {[%clk 0:01:51]}  Qxe5 {[%clk 0:02:19]} 16. g3 {[%clk 0:01:48]}  g5 {[%clk 0:02:18]} 17. h5 {[%clk 0:01:30]}  Qd4 {[%clk 0:01:42]} 18. Be2 {[%clk 0:01:22]}  Qxf2+ {[%clk 0:01:39]} 0-1


[Site "https://www.chess.com"]

[Event "Titled Tuesday Blitz December 13 Late 2022"]
[White "Zhu, Jiner"]
[Black "Floresvillar Gonzalez, Luis Migu"]
[WhiteFideId "8608059"]
[BlackFideId "5100542"]
[WhiteElo "2384"]
[BlackElo "2040"]
[Result "1-0"]
[Round "08"]
[TimeControl "180+1"]
[Date "2022.12.14"]
[WhiteClock "0:01:00"]
[BlackClock "0:00:09"]

1. g3 {[%clk 0:03:00]}  d5 {[%clk 0:02:59]} 2. Bg2 {[%clk 0:03:00]}  c6 {[%clk 0:02:59]} 3. h4 {[%clk 0:03:00]}  Bf5 {[%clk 0:02:59]} 4. d4 {[%clk 0:03:00]}  e6 {[%clk 0:02:58]} 5. Nh3 {[%clk 0:03:00]}  Bd6 {[%clk 0:02:57]} 6. O-O {[%clk 0:03:00]}  h6 {[%clk 0:02:57]} 7. Nf4 {[%clk 0:03:00]}  Ne7 {[%clk 0:02:53]} 8. h5 {[%clk 0:02:59]}  g5 {[%clk 0:02:50]} 9. hxg6 {[%clk 0:02:59]}  Nxg6 {[%clk 0:02:50]} 10. Nxg6 {[%clk 0:02:58]}  Bxg6 {[%clk 0:02:48]} 11. Nd2 {[%clk 0:02:58]}  Nd7 {[%clk 0:02:47]} 12. e4 {[%clk 0:02:58]}  dxe4 {[%clk 0:02:46]} 13. Nxe4 {[%clk 0:02:59]}  Bxe4 {[%clk 0:02:45]} 14. Bxe4 {[%clk 0:02:59]}  Qc7 {[%clk 0:02:42]} 15. Qf3 {[%clk 0:02:57]}  O-O-O {[%clk 0:02:40]} 16. b4 {[%clk 0:02:50]}  f5 {[%clk 0:02:39]} 17. Bd3 {[%clk 0:02:49]}  Rdg8 {[%clk 0:02:35]} 18. b5 {[%clk 0:02:49]}  Bxg3 {[%clk 0:02:33]} 19. Kh1 {[%clk 0:02:48]}  Bd6 {[%clk 0:02:24]} 20. bxc6 {[%clk 0:02:47]}  Qxc6 {[%clk 0:02:24]} 21. Qxc6+ {[%clk 0:02:44]}  bxc6 {[%clk 0:02:23]} 22. Bc4 {[%clk 0:02:42]}  Rg6 {[%clk 0:02:13]} 23. Re1 {[%clk 0:02:41]}  Re8 {[%clk 0:02:10]} 24. Bd2 {[%clk 0:02:41]}  Nb6 {[%clk 0:02:09]} 25. Bd3 {[%clk 0:02:41]}  Kd7 {[%clk 0:02:06]} 26. c4 {[%clk 0:02:39]}  Bf8 {[%clk 0:02:00]} 27. a4 {[%clk 0:02:38]}  Bg7 {[%clk 0:01:59]} 28. a5 {[%clk 0:02:35]}  Nc8 {[%clk 0:01:54]} 29. Rab1 {[%clk 0:02:11]}  Bxd4 {[%clk 0:01:46]} 30. Rb7+ {[%clk 0:02:11]}  Kd6 {[%clk 0:01:45]} 31. Bxf5 {[%clk 0:02:00]}  Rf6 {[%clk 0:01:41]} 32. Bh3 {[%clk 0:01:49]}  Rxf2 {[%clk 0:01:29]} 33. Bxh6 {[%clk 0:01:48]}  Rh8 {[%clk 0:01:27]} 34. Rxe6+ {[%clk 0:01:47]}  Kc5 {[%clk 0:01:26]} 35. Rc7 {[%clk 0:01:43]}  Nd6 {[%clk 0:01:16]} 36. Bg2 {[%clk 0:01:31]}  Rxg2 {[%clk 0:00:47]} 37. Kxg2 {[%clk 0:01:29]}  Rg8+ {[%clk 0:00:48]} 38. Kf3 {[%clk 0:01:27]}  a6 {[%clk 0:00:41]} 39. Bf4 {[%clk 0:01:26]}  Rd8 {[%clk 0:00:27]} 40. Ke2 {[%clk 0:01:14]}  Bc3 {[%clk 0:00:26]} 41. Rxd6 {[%clk 0:01:06]}  Rxd6 {[%clk 0:00:25]} 42. Bxd6+ {[%clk 0:01:07]}  Kxd6 {[%clk 0:00:25]} 43. Ra7 {[%clk 0:01:07]}  Bxa5 {[%clk 0:00:25]} 44. Rxa6 {[%clk 0:01:07]}  Bb4 {[%clk 0:00:24]} 45. Kd3 {[%clk 0:01:08]}  Kd7 {[%clk 0:00:20]} 46. Ra8 {[%clk 0:01:09]}  c5 {[%clk 0:00:19]} 47. Ke4 {[%clk 0:01:07]}  Kd6 {[%clk 0:00:18]} 48. Rg8 {[%clk 0:01:08]}  Bc3 {[%clk 0:00:17]} 49. Rg6+ {[%clk 0:01:09]}  Ke7 {[%clk 0:00:16]} 50. Kd5 {[%clk 0:01:09]}  Bd4 {[%clk 0:00:16]} 51. Ra6 {[%clk 0:01:08]}  Kd7 {[%clk 0:00:16]} 52. Ra7+ {[%clk 0:01:08]}  Kc8 {[%clk 0:00:15]} 53. Kc6 {[%clk 0:01:08]}  Kb8 {[%clk 0:00:14]} 54. Rb7+ {[%clk 0:01:08]}  Kc8 {[%clk 0:00:14]} 55. Rf7 {[%clk 0:01:04]}  Kd8 {[%clk 0:00:13]} 56. Rf8+ {[%clk 0:01:04]}  Ke7 {[%clk 0:00:13]} 57. Rc8 {[%clk 0:01:05]}  Ke6 {[%clk 0:00:12]} 58. Re8+ {[%clk 0:01:04]}  Kf7 {[%clk 0:00:12]} 59. Re4 {[%clk 0:01:04]}  Kf6 {[%clk 0:00:10]} 60. Kd6 {[%clk 0:01:03]}  Kf7 {[%clk 0:00:10]} 61. Kd5 {[%clk 0:01:03]}  Kf6 {[%clk 0:00:08]} 62. Rxd4 {[%clk 0:00:58]}  cxd4 {[%clk 0:00:08]} 63. Kxd4 {[%clk 0:00:59]}  Ke7 {[%clk 0:00:08]} 64. Kc5 {[%clk 0:01:00]}  Kd7 {[%clk 0:00:09]} 65. Kb6 {[%clk 0:01:01]}  Kc8 {[%clk 0:00:09]} 66. c5 {[%clk 0:01:00]}  Kb8 {[%clk 0:00:09]} 67. c6 {[%clk 0:00:59]}  Kc8 {[%clk 0:00:09]} 68. c7 {[%clk 0:01:00]}  Kd7 {[%clk 0:00:09]} 69. Kb7 {[%clk 0:01:00]} 1-0


[Site "https://www.chess.com"]

[Event "Titled Tuesday Blitz December 13 Late 2022"]
[White "Andrews, Todd"]
[Black "Rustemov, Alexander"]
[WhiteFideId "2012456"]
[BlackFideId "4119002"]
[WhiteElo "2397"]
[BlackElo "2782"]
[Result "0-1"]
[Round "09"]
[TimeControl "180+1"]
[Date "2022.12.13"]
[WhiteClock "0:00:02"]
[BlackClock "0:00:16"]

1. e4 {[%clk 0:03:00]}  e6 {[%clk 0:03:00]} 2. d3 {[%clk 0:02:57]}  c5 {[%clk 0:02:59]} 3. Nf3 {[%clk 0:02:56]}  Nc6 {[%clk 0:02:59]} 4. g3 {[%clk 0:02:56]}  g6 {[%clk 0:03:00]} 5. Bg2 {[%clk 0:02:56]}  Bg7 {[%clk 0:03:00]} 6. O-O {[%clk 0:02:57]}  Nge7 {[%clk 0:03:01]} 7. Re1 {[%clk 0:02:57]}  O-O {[%clk 0:03:00]} 8. c3 {[%clk 0:02:56]}  e5 {[%clk 0:02:59]} 9. Nbd2 {[%clk 0:02:54]}  d6 {[%clk 0:02:59]} 10. Nc4 {[%clk 0:02:52]}  h6 {[%clk 0:02:56]} 11. a4 {[%clk 0:02:52]}  Bg4 {[%clk 0:02:55]} 12. h3 {[%clk 0:02:51]}  Be6 {[%clk 0:02:54]} 13. Ne3 {[%clk 0:02:51]}  Qd7 {[%clk 0:02:55]} 14. Kh2 {[%clk 0:02:50]}  f5 {[%clk 0:02:54]} 15. Nd2 {[%clk 0:02:35]}  f4 {[%clk 0:02:53]} 16. Nd5 {[%clk 0:02:35]}  g5 {[%clk 0:02:49]} 17. Nc4 {[%clk 0:02:27]}  Ng6 {[%clk 0:02:49]} 18. a5 {[%clk 0:02:24]}  Rf7 {[%clk 0:02:47]} 19. Qh5 {[%clk 0:02:08]}  Kh7 {[%clk 0:02:46]} 20. Bd2 {[%clk 0:01:55]}  Raf8 {[%clk 0:02:45]} 21. gxf4 {[%clk 0:01:49]}  exf4 {[%clk 0:02:40]} 22. Rg1 {[%clk 0:01:37]}  Nce5 {[%clk 0:02:36]} 23. Nxe5 {[%clk 0:01:36]}  Nxe5 {[%clk 0:02:35]} 24. d4 {[%clk 0:00:53]}  cxd4 {[%clk 0:02:25]} 25. cxd4 {[%clk 0:00:53]}  Nc6 {[%clk 0:02:25]} 26. Bf1 {[%clk 0:00:42]}  Kg8 {[%clk 0:02:20]} 27. Bd3 {[%clk 0:00:34]}  Nxd4 {[%clk 0:02:18]} 28. Bc3 {[%clk 0:00:31]}  g4 {[%clk 0:01:45]} 29. Kh1 {[%clk 0:00:27]}  Nf3 {[%clk 0:01:38]} 30. Rg2 {[%clk 0:00:20]}  Bxc3 {[%clk 0:01:27]} 31. bxc3 {[%clk 0:00:20]}  Ne5 {[%clk 0:01:22]} 32. Bc2 {[%clk 0:00:16]}  Rg7 {[%clk 0:01:17]} 33. Rag1 {[%clk 0:00:15]}  Bxd5 {[%clk 0:01:06]} 34. exd5 {[%clk 0:00:15]}  Qf7 {[%clk 0:01:07]} 35. Qxh6 {[%clk 0:00:13]}  Qf6 {[%clk 0:00:57]} 36. Qh5 {[%clk 0:00:11]}  Qg5 {[%clk 0:00:52]} 37. Bh7+ {[%clk 0:00:10]}  Kh8 {[%clk 0:00:48]} 38. Qxg5 {[%clk 0:00:10]}  Rxg5 {[%clk 0:00:48]} 39. Be4 {[%clk 0:00:11]}  Rh5 {[%clk 0:00:42]} 40. Rh2 {[%clk 0:00:10]}  gxh3 {[%clk 0:00:35]} 41. f3 {[%clk 0:00:07]}  Rg8 {[%clk 0:00:29]} 42. Rb1 {[%clk 0:00:07]}  Rg7 {[%clk 0:00:27]} 43. a6 {[%clk 0:00:08]}  b6 {[%clk 0:00:26]} 44. c4 {[%clk 0:00:04]}  Kg8 {[%clk 0:00:26]} 45. c5 {[%clk 0:00:04]}  dxc5 {[%clk 0:00:25]} 46. d6 {[%clk 0:00:05]}  Kf8 {[%clk 0:00:25]} 47. Rd1 {[%clk 0:00:05]}  Rd7 {[%clk 0:00:23]} 48. Kg1 {[%clk 0:00:02]}  Kf7 {[%clk 0:00:23]} 49. Kf2 {[%clk 0:00:03]}  Ke6 {[%clk 0:00:23]} 50. Bd5+ {[%clk 0:00:02]}  Kxd6 {[%clk 0:00:22]} 51. Bf7+ {[%clk 0:00:02]}  Kc6 {[%clk 0:00:20]} 52. Rxd7 {[%clk 0:00:03]}  Kxd7 {[%clk 0:00:16]} 53. Bxh5 {[%clk 0:00:03]}  b5 {[%clk 0:00:16]} 54. Rxh3 {[%clk 0:00:04]}  Kc6 {[%clk 0:00:16]} 55. Rh1 {[%clk 0:00:04]}  c4 {[%clk 0:00:16]} 56. Rd1 {[%clk 0:00:04]}  b4 {[%clk 0:00:16]} 57. Be8+ {[%clk 0:00:03]}  Kc5 {[%clk 0:00:16]} 58. Ba4 {[%clk 0:00:03]}  b3 {[%clk 0:00:16]} 59. Rd8 {[%clk 0:00:02]}  Kb4 {[%clk 0:00:16]} 0-1


[Site "https://www.chess.com"]

[Event "Titled Tuesday Blitz December 13 Late 2022"]
[White "Arkell, Keith C"]
[Black "Przybylski, Wojciech"]
[WhiteFideId "400270"]
[BlackFideId "1117599"]
[WhiteElo "2356"]
[BlackElo "2217"]
[Result "1/2-1/2"]
[Round "09"]
[TimeControl "180+1"]
[Date "2022.12.14"]
[WhiteClock "0:00:09"]
[BlackClock "0:00:04"]

1. d4 {[%clk 0:03:00]}  Nf6 {[%clk 0:02:57]} 2. Nf3 {[%clk 0:03:01]}  e6 {[%clk 0:02:47]} 3. c4 {[%clk 0:03:00]}  b6 {[%clk 0:02:46]} 4. g3 {[%clk 0:02:58]}  Ba6 {[%clk 0:02:45]} 5. b3 {[%clk 0:02:58]}  Bb4+ {[%clk 0:02:45]} 6. Bd2 {[%clk 0:02:59]}  Be7 {[%clk 0:02:45]} 7. Bc3 {[%clk 0:02:59]}  O-O {[%clk 0:02:45]} 8. Nbd2 {[%clk 0:02:59]}  d5 {[%clk 0:02:44]} 9. Bg2 {[%clk 0:02:58]}  c6 {[%clk 0:02:45]} 10. Ne5 {[%clk 0:02:58]}  Nfd7 {[%clk 0:02:44]} 11. Nd3 {[%clk 0:02:58]}  Bb7 {[%clk 0:02:41]} 12. e4 {[%clk 0:02:56]}  dxe4 {[%clk 0:02:31]} 13. Nxe4 {[%clk 0:02:56]}  Qc7 {[%clk 0:02:30]} 14. O-O {[%clk 0:02:53]}  Nf6 {[%clk 0:02:24]} 15. Qe2 {[%clk 0:02:44]}  Nbd7 {[%clk 0:02:22]} 16. Rad1 {[%clk 0:02:32]}  Rad8 {[%clk 0:02:19]} 17. Rfe1 {[%clk 0:02:32]}  Rfe8 {[%clk 0:02:19]} 18. b4 {[%clk 0:02:27]}  c5 {[%clk 0:02:09]} 19. dxc5 {[%clk 0:02:23]}  bxc5 {[%clk 0:02:09]} 20. Nxf6+ {[%clk 0:02:20]}  Nxf6 {[%clk 0:02:07]} 21. Bxf6 {[%clk 0:02:20]}  Bxf6 {[%clk 0:02:03]} 22. Bxb7 {[%clk 0:02:18]}  Qxb7 {[%clk 0:02:01]} 23. bxc5 {[%clk 0:02:17]}  Bd4 {[%clk 0:01:57]} 24. Rb1 {[%clk 0:02:05]}  Qc7 {[%clk 0:01:49]} 25. Qe4 {[%clk 0:02:03]}  Bxc5 {[%clk 0:01:37]} 26. Rb7 {[%clk 0:02:01]}  Qd6 {[%clk 0:01:30]} 27. Nxc5 {[%clk 0:01:59]}  Qxc5 {[%clk 0:01:28]} 28. Re3 {[%clk 0:01:57]}  Rd4 {[%clk 0:01:25]} 29. Qf3 {[%clk 0:01:56]}  Rf8 {[%clk 0:01:16]} 30. Rc3 {[%clk 0:01:48]}  e5 {[%clk 0:01:04]} 31. Qe2 {[%clk 0:01:40]}  Rfd8 {[%clk 0:01:01]} 32. Rc1 {[%clk 0:01:37]}  e4 {[%clk 0:00:59]} 33. Qe3 {[%clk 0:01:14]}  h6 {[%clk 0:00:45]} 34. Kg2 {[%clk 0:01:12]}  Qc6 {[%clk 0:00:37]} 35. Rxa7 {[%clk 0:00:59]}  Rd3 {[%clk 0:00:37]} 36. Qf4 {[%clk 0:01:00]}  e3+ {[%clk 0:00:37]} 37. f3 {[%clk 0:00:49]}  Rd2+ {[%clk 0:00:22]} 38. Kh3 {[%clk 0:00:49]}  Qe6+ {[%clk 0:00:22]} 39. g4 {[%clk 0:00:49]}  e2 {[%clk 0:00:19]} 40. Re1 {[%clk 0:00:49]}  R2d4 {[%clk 0:00:04]} 41. Qf5 {[%clk 0:00:45]}  Qxf5 {[%clk 0:00:03]} 42. gxf5 {[%clk 0:00:45]}  Rd2 {[%clk 0:00:03]} 43. Re7 {[%clk 0:00:42]}  Rxa2 {[%clk 0:00:03]} 44. R7xe2 {[%clk 0:00:42]}  Rxe2 {[%clk 0:00:02]} 45. Rxe2 {[%clk 0:00:42]}  Rd4 {[%clk 0:00:02]} 46. Rc2 {[%clk 0:00:42]}  Kf8 {[%clk 0:00:03]} 47. Kg3 {[%clk 0:00:36]}  Ke7 {[%clk 0:00:03]} 48. Kf2 {[%clk 0:00:36]}  Kd6 {[%clk 0:00:03]} 49. Ke3 {[%clk 0:00:37]}  Kc5 {[%clk 0:00:03]} 50. Ra2 {[%clk 0:00:36]}  Rxc4 {[%clk 0:00:03]} 51. Ra7 {[%clk 0:00:36]}  Kd5 {[%clk 0:00:04]} 52. Rxf7 {[%clk 0:00:36]}  Ke5 {[%clk 0:00:04]} 53. Rxg7 {[%clk 0:00:30]}  Kxf5 {[%clk 0:00:04]} 54. Kf2 {[%clk 0:00:31]}  Rh4 {[%clk 0:00:02]} 55. Kg3 {[%clk 0:00:31]}  Rc4 {[%clk 0:00:02]} 56. h4 {[%clk 0:00:31]}  Kf6 {[%clk 0:00:02]} 57. Rg8 {[%clk 0:00:31]}  Rc5 {[%clk 0:00:03]} 58. Kg4 {[%clk 0:00:25]}  Kf7 {[%clk 0:00:03]} 59. Rd8 {[%clk 0:00:24]}  h5+ {[%clk 0:00:03]} 60. Kf4 {[%clk 0:00:24]}  Kg6 {[%clk 0:00:03]} 61. Rd6+ {[%clk 0:00:23]}  Kg7 {[%clk 0:00:04]} 62. Re6 {[%clk 0:00:24]}  Rb5 {[%clk 0:00:02]} 63. Re5 {[%clk 0:00:24]}  Rb4+ {[%clk 0:00:02]} 64. Kg5 {[%clk 0:00:24]}  Rb3 {[%clk 0:00:02]} 65. f4 {[%clk 0:00:24]}  Rg3+ {[%clk 0:00:02]} 66. Kxh5 {[%clk 0:00:23]}  Kf6 {[%clk 0:00:02]} 67. Rg5 {[%clk 0:00:23]}  Rf3 {[%clk 0:00:02]} 68. Rg8 {[%clk 0:00:22]}  Kf7 {[%clk 0:00:02]} 69. Ra8 {[%clk 0:00:19]}  Rxf4 {[%clk 0:00:02]} 70. Kg5 {[%clk 0:00:20]}  Rd4 {[%clk 0:00:02]} 71. h5 {[%clk 0:00:19]}  Rd5+ {[%clk 0:00:01]} 72. Kh6 {[%clk 0:00:19]}  Re5 {[%clk 0:00:02]} 73. Rb8 {[%clk 0:00:17]}  Rd5 {[%clk 0:00:01]} 74. Rh8 {[%clk 0:00:13]}  Re5 {[%clk 0:00:02]} 75. Rd8 {[%clk 0:00:13]}  Rc5 {[%clk 0:00:01]} 76. Rh8 {[%clk 0:00:08]}  Rb5 {[%clk 0:00:01]} 77. Rh7+ {[%clk 0:00:08]}  Kg8 {[%clk 0:00:02]} 78. Re7 {[%clk 0:00:07]}  Rb6+ {[%clk 0:00:02]} 79. Kg5 {[%clk 0:00:08]}  Kh8 {[%clk 0:00:02]} 80. Rf7 {[%clk 0:00:07]}  Ra6 {[%clk 0:00:03]} 81. Rf8+ {[%clk 0:00:06]}  Kh7 {[%clk 0:00:03]} 82. Rf5 {[%clk 0:00:07]}  Rb6 {[%clk 0:00:02]} 83. Re5 {[%clk 0:00:07]}  Kg8 {[%clk 0:00:02]} 84. Rf5 {[%clk 0:00:07]}  Ra6 {[%clk 0:00:03]} 85. Rf6 {[%clk 0:00:07]}  Rxf6 {[%clk 0:00:02]} 86. Kxf6 {[%clk 0:00:08]}  Kh7 {[%clk 0:00:03]} 87. Ke7 {[%clk 0:00:08]}  Kh6 {[%clk 0:00:04]} 88. Kd8 {[%clk 0:00:09]}  Kxh5 {[%clk 0:00:04]} 1/2-1/2


[Site "https://www.chess.com"]